[Event "*** Titled Tuesday Blitz"]
[Site "Chess.com"]
[Date "2020.04.14"]
[Round "1"]
[White "joppie2"]
[Black "manitodeplomo"]
[Result "1-0"]
[WhiteElo "2938"]
[BlackElo "2492"]
[TimeControl "180+1"]
[EndTime "10:06:36 PDT"]
[Termination "joppie2 won on time"]

1. e4 {[%clk 0:03:00.7]} 1... c5 {[%clk 0:02:54.5]} 2. Nf3 {[%clk 0:03:00.1]}
2... e6 {[%clk 0:02:52.2]} 3. c3 {[%clk 0:02:59.7]} 3... d5 {[%clk 0:02:51.2]}
4. exd5 {[%clk 0:02:59]} 4... Qxd5 {[%clk 0:02:41.9]} 5. d4 {[%clk 0:02:59.9]}
5... Nf6 {[%clk 0:02:41.4]} 6. Na3 {[%clk 0:02:59.7]} 6... a6 {[%clk 0:02:40.6]}
7. Nc4 {[%clk 0:02:58.3]} 7... Nbd7 {[%clk 0:02:35.9]} 8. Be2 {[%clk 0:02:58.8]}
8... b5 {[%clk 0:02:19.1]} 9. Na5 {[%clk 0:02:58.1]} 9... Qd6 {[%clk 0:02:07.5]}
10. a4 {[%clk 0:02:44.1]} 10... Qc7 {[%clk 0:01:57.5]} 11. Nb3 {[%clk
0:02:30.6]} 11... c4 {[%clk 0:01:49]} 12. Nbd2 {[%clk 0:02:30.4]} 12... Bb7
{[%clk 0:01:49.1]} 13. O-O {[%clk 0:02:30.4]} 13... Bd6 {[%clk 0:01:47.8]} 14.
axb5 {[%clk 0:02:27.1]} 14... axb5 {[%clk 0:01:47.1]} 15. Rxa8+ {[%clk
0:02:27.8]} 15... Bxa8 {[%clk 0:01:48]} 16. b3 {[%clk 0:02:28.7]} 16... Bd5
{[%clk 0:01:47.7]} 17. bxc4 {[%clk 0:02:27.9]} 17... bxc4 {[%clk 0:01:48.6]} 18.
Qa4 {[%clk 0:02:28]} 18... O-O {[%clk 0:01:47.8]} 19. Nxc4 {[%clk 0:02:25.5]}
19... Ra8 {[%clk 0:01:48.2]} 20. Qb5 {[%clk 0:02:17.8]} 20... Rb8 {[%clk
0:01:41.9]} 21. Qa6 {[%clk 0:02:15.4]} 21... Bf8 {[%clk 0:01:31.1]} 22. Qa5
{[%clk 0:01:59.9]} 22... Qb7 {[%clk 0:01:17.4]} 23. Ne3 {[%clk 0:01:50.5]} 23...
Nb6 {[%clk 0:00:32.1]} 24. c4 {[%clk 0:01:36.7]} 24... Bc6 {[%clk 0:00:23.8]}
25. Ne5 {[%clk 0:01:31.6]} 25... Be4 {[%clk 0:00:14.4]} 26. f3 {[%clk
0:01:22.2]} 26... Bg6 {[%clk 0:00:13.9]} 27. Nxg6 {[%clk 0:01:22.2]} 27... hxg6
{[%clk 0:00:14.8]} 28. Bd2 {[%clk 0:01:08.5]} 28... Qd7 {[%clk 0:00:13.4]} 29.
Bc3 {[%clk 0:01:04.5]} 29... Na4 {[%clk 0:00:13.5]} 30. Ba1 {[%clk 0:01:05.1]}
30... Bb4 {[%clk 0:00:12.7]} 31. Qe5 {[%clk 0:01:04.5]} 31... Bd6 {[%clk
0:00:11.4]} 32. Qg5 {[%clk 0:01:05.1]} 32... Bb4 {[%clk 0:00:10.7]} 33. d5
{[%clk 0:00:59.7]} 33... Bc5 {[%clk 0:00:09.7]} 34. Kh1 {[%clk 0:00:59.3]} 34...
exd5 {[%clk 0:00:07.3]} 35. Nxd5 {[%clk 0:00:59.2]} 35... Nxd5 {[%clk
0:00:07.2]} 36. Qe5 {[%clk 0:00:59.9]} 1-0

[Event "*** Titled Tuesday Blitz"]
[Site "Chess.com"]
[Date "2020.04.14"]
[Round "1"]
[White "Schandenfreude"]
[Black "GHANDEEVAM2003"]
[Result "1/2-1/2"]
[WhiteElo "2497"]
[BlackElo "2919"]
[TimeControl "180+1"]
[EndTime "10:06:36 PDT"]
[Termination "Game drawn - insufficient material"]

1. Nf3 {[%clk 0:02:58.8]} 1... d5 {[%clk 0:02:57]} 2. b3 {[%clk 0:02:55]} 2...
Bg4 {[%clk 0:02:56]} 3. Bb2 {[%clk 0:02:53.4]} 3... Nd7 {[%clk 0:02:54.9]} 4. e3
{[%clk 0:02:49.7]} 4... Ngf6 {[%clk 0:02:54.5]} 5. Be2 {[%clk 0:02:45.3]} 5...
c6 {[%clk 0:02:50.4]} 6. O-O {[%clk 0:02:38.4]} 6... e6 {[%clk 0:02:47.8]} 7. c4
{[%clk 0:02:37.9]} 7... Bd6 {[%clk 0:02:47.8]} 8. cxd5 {[%clk 0:02:33.8]} 8...
exd5 {[%clk 0:02:48.7]} 9. d3 {[%clk 0:02:33.5]} 9... O-O {[%clk 0:02:46.8]} 10.
Nbd2 {[%clk 0:02:32.3]} 10... Re8 {[%clk 0:02:46.9]} 11. a3 {[%clk 0:02:24.1]}
11... a5 {[%clk 0:02:46.2]} 12. Qc2 {[%clk 0:02:23.2]} 12... Qe7 {[%clk
0:02:39.5]} 13. Rfe1 {[%clk 0:02:21.9]} 13... h6 {[%clk 0:02:36]} 14. Bf1 {[%clk
0:02:19.2]} 14... Bf5 {[%clk 0:02:27.5]} 15. Qc3 {[%clk 0:01:43.2]} 15... Bh7
{[%clk 0:02:22.3]} 16. e4 {[%clk 0:01:36.9]} 16... dxe4 {[%clk 0:02:21.3]} 17.
Nxe4 {[%clk 0:01:14]} 17... Qf8 {[%clk 0:02:21.1]} 18. Nxd6 {[%clk 0:00:58.1]}
18... Qxd6 {[%clk 0:02:22]} 19. Rxe8+ {[%clk 0:00:50.3]} 19... Rxe8 {[%clk
0:02:22.9]} 20. Re1 {[%clk 0:00:50.3]} 20... Rxe1 {[%clk 0:02:22.2]} 21. Qxe1
{[%clk 0:00:49.7]} 21... Bf5 {[%clk 0:02:22.6]} 22. Qxa5 {[%clk 0:00:49.1]}
22... Be6 {[%clk 0:02:18.9]} 23. Qa8+ {[%clk 0:00:48.8]} 23... Qb8 {[%clk
0:02:11.2]} 24. Qxb8+ {[%clk 0:00:47.8]} 24... Nxb8 {[%clk 0:02:12.1]} 25. Bxf6
{[%clk 0:00:42.1]} 25... gxf6 {[%clk 0:02:13]} 26. b4 {[%clk 0:00:40.3]} 26...
Kf8 {[%clk 0:02:13.4]} 27. Nd4 {[%clk 0:00:37.3]} 27... Ke7 {[%clk 0:02:12.6]}
28. f4 {[%clk 0:00:31.3]} 28... Kd6 {[%clk 0:02:12.4]} 29. Kf2 {[%clk
0:00:30.4]} 29... Nd7 {[%clk 0:02:12.9]} 30. Nxe6 {[%clk 0:00:25.4]} 30... fxe6
{[%clk 0:02:13.8]} 31. g3 {[%clk 0:00:22.1]} 31... Nb6 {[%clk 0:02:05]} 32. Bg2
{[%clk 0:00:21.8]} 32... Na4 {[%clk 0:02:04]} 33. Ke3 {[%clk 0:00:21.8]} 33...
Nc3 {[%clk 0:02:01.8]} 34. g4 {[%clk 0:00:16.9]} 34... b6 {[%clk 0:01:58.2]} 35.
h4 {[%clk 0:00:16.2]} 35... c5 {[%clk 0:01:51.2]} 36. bxc5+ {[%clk 0:00:15.9]}
36... Kxc5 {[%clk 0:01:52.1]} 37. g5 {[%clk 0:00:16.4]} 37... fxg5 {[%clk
0:01:49.9]} 38. fxg5 {[%clk 0:00:16.7]} 38... hxg5 {[%clk 0:01:50.8]} 39. hxg5
{[%clk 0:00:15.4]} 39... Kd6 {[%clk 0:01:51.2]} 40. g6 {[%clk 0:00:14.8]} 40...
Ke7 {[%clk 0:01:50.6]} 41. Be4 {[%clk 0:00:13.2]} 41... Kf6 {[%clk 0:01:48.8]}
42. Kd4 {[%clk 0:00:12.2]} 42... Nb5+ {[%clk 0:01:48]} 43. Kc4 {[%clk 0:00:11]}
43... Nxa3+ {[%clk 0:01:48.9]} 44. Kb4 {[%clk 0:00:11.2]} 44... Nb1 {[%clk
0:01:32.3]} 45. Kb5 {[%clk 0:00:10]} 45... Nc3+ {[%clk 0:01:32.4]} 46. Kxb6
{[%clk 0:00:06.3]} 46... Nxe4 {[%clk 0:01:32.9]} 47. dxe4 {[%clk 0:00:07.2]}
47... Kxg6 {[%clk 0:01:33.4]} 48. Kc6 {[%clk 0:00:07.1]} 48... Kg5 {[%clk
0:01:33.9]} 49. Kd7 {[%clk 0:00:05.4]} 49... Kf4 {[%clk 0:01:30.1]} 50. Kxe6
{[%clk 0:00:04.6]} 50... Kxe4 {[%clk 0:01:30.5]} 1/2-1/2

[Event "*** Titled Tuesday Blitz"]
[Site "Chess.com"]
[Date "2020.04.14"]
[Round "1"]
[White "Saxar85"]
[Black "IlzeBerzina"]
[Result "1-0"]
[WhiteElo "2606"]
[BlackElo "2241"]
[TimeControl "180+1"]
[EndTime "10:06:38 PDT"]
[Termination "Saxar85 won by resignation"]

1. Nf3 {[%clk 0:02:59.9]} 1... d5 {[%clk 0:02:59.6]} 2. g3 {[%clk 0:02:58.6]}
2... Bg4 {[%clk 0:02:59.4]} 3. Bg2 {[%clk 0:02:58.2]} 3... c6 {[%clk 0:02:59.4]}
4. O-O {[%clk 0:02:58.2]} 4... Nd7 {[%clk 0:02:59.1]} 5. c4 {[%clk 0:02:58]}
5... e6 {[%clk 0:02:55.5]} 6. cxd5 {[%clk 0:02:53.9]} 6... exd5 {[%clk
0:02:53.6]} 7. d3 {[%clk 0:02:52.2]} 7... Ngf6 {[%clk 0:02:52]} 8. Nc3 {[%clk
0:02:51.9]} 8... Be7 {[%clk 0:02:49.4]} 9. h3 {[%clk 0:02:51.6]} 9... Bh5 {[%clk
0:02:48.5]} 10. e4 {[%clk 0:02:50.7]} 10... dxe4 {[%clk 0:02:25.8]} 11. dxe4
{[%clk 0:02:50.1]} 11... O-O {[%clk 0:02:25.5]} 12. Qc2 {[%clk 0:02:49.6]} 12...
Bxf3 {[%clk 0:02:20.8]} 13. Bxf3 {[%clk 0:02:48.8]} 13... Ne5 {[%clk 0:02:20.6]}
14. Bg2 {[%clk 0:02:47.1]} 14... Qd3 {[%clk 0:02:19]} 15. Qb3 {[%clk 0:02:46.6]}
15... Nf3+ {[%clk 0:02:12.8]} 16. Kh1 {[%clk 0:02:43.7]} 16... Nd2 {[%clk
0:01:42.6]} 17. Bxd2 {[%clk 0:02:40.1]} 17... Qxd2 {[%clk 0:01:42.3]} 18. Rad1
{[%clk 0:02:37.1]} 18... Qh6 {[%clk 0:01:38.4]} 19. Qxb7 {[%clk 0:02:34.9]}
19... Bc5 {[%clk 0:01:27.2]} 20. Qxc6 {[%clk 0:02:32.7]} 20... Rac8 {[%clk
0:01:25.4]} 21. Qa6 {[%clk 0:02:27.2]} 21... Qh5 {[%clk 0:01:20]} 22. Qe2 {[%clk
0:02:23]} 22... Qh6 {[%clk 0:01:15.3]} 23. e5 {[%clk 0:02:19]} 23... Ne8 {[%clk
0:01:09.7]} 24. Ne4 {[%clk 0:02:12.3]} 24... Bb6 {[%clk 0:01:07.9]} 25. f4
{[%clk 0:02:07.2]} 25... Nc7 {[%clk 0:01:06.6]} 26. Nd6 {[%clk 0:02:06.3]} 26...
Rcd8 {[%clk 0:01:05.3]} 27. f5 {[%clk 0:01:57.2]} 27... Qg5 {[%clk 0:01:01]} 28.
Qg4 {[%clk 0:01:52.9]} 28... Qe3 {[%clk 0:00:59.7]} 29. f6 {[%clk 0:01:47.2]}
29... g6 {[%clk 0:00:58.9]} 30. Rde1 {[%clk 0:01:43.6]} 30... Qd2 {[%clk
0:00:57.7]} 31. Nc4 {[%clk 0:01:30.4]} 31... Qc2 {[%clk 0:00:51]} 32. Qe4 {[%clk
0:01:18]} 32... Qxe4 {[%clk 0:00:46]} 33. Bxe4 {[%clk 0:01:17.9]} 33... Ne6
{[%clk 0:00:45.8]} 34. Rd1 {[%clk 0:01:17.8]} 34... Rc8 {[%clk 0:00:43.1]} 35.
b3 {[%clk 0:01:16.8]} 35... Bd4 {[%clk 0:00:40.8]} 36. Kg2 {[%clk 0:01:15.2]}
36... Rb8 {[%clk 0:00:40.6]} 37. Bd5 {[%clk 0:01:14]} 37... Bc3 {[%clk
0:00:35.8]} 38. Bxe6 {[%clk 0:01:13.5]} 38... fxe6 {[%clk 0:00:36]} 39. Rd7
{[%clk 0:01:12.4]} 39... Rf7 {[%clk 0:00:35.6]} 40. Rfd1 {[%clk 0:01:11]} 40...
Rbf8 {[%clk 0:00:35.2]} 41. g4 {[%clk 0:01:08.2]} 41... g5 {[%clk 0:00:34.5]}
42. Kf3 {[%clk 0:01:07.8]} 42... h6 {[%clk 0:00:34.5]} 43. Ke4 {[%clk
0:01:07.9]} 43... Bb4 {[%clk 0:00:33.3]} 44. Rxf7 {[%clk 0:01:06.4]} 44... Rxf7
{[%clk 0:00:32.7]} 45. Rd8+ {[%clk 0:01:06.1]} 45... Kh7 {[%clk 0:00:32.8]} 46.
Re8 {[%clk 0:01:05.9]} 46... Kg6 {[%clk 0:00:31.6]} 47. Rxe6 {[%clk 0:01:05.8]}
47... h5 {[%clk 0:00:31.4]} 48. Re8 {[%clk 0:01:05.3]} 48... hxg4 {[%clk
0:00:30.7]} 49. hxg4 {[%clk 0:01:04.9]} 49... Rd7 {[%clk 0:00:30.5]} 50. Rg8+
{[%clk 0:01:03.6]} 1-0

[Event "*** Titled Tuesday Blitz"]
[Site "Chess.com"]
[Date "2020.04.14"]
[Round "1"]
[White "wannabe2700"]
[Black "Casablanca"]
[Result "1-0"]
[WhiteElo "2672"]
[BlackElo "2326"]
[TimeControl "180+1"]
[EndTime "10:06:39 PDT"]
[Termination "wannabe2700 won by resignation"]

1. d3 {[%clk 0:02:28.5]} 1... e5 {[%clk 0:02:59.3]} 2. e4 {[%clk 0:02:28.1]}
2... Nc6 {[%clk 0:02:57.5]} 3. Nc3 {[%clk 0:02:27.8]} 3... Nge7 {[%clk
0:02:54.7]} 4. f4 {[%clk 0:02:27.9]} 4... d6 {[%clk 0:02:54.2]} 5. Nf3 {[%clk
0:02:27.5]} 5... exf4 {[%clk 0:02:45.7]} 6. Bxf4 {[%clk 0:02:28.4]} 6... Ng6
{[%clk 0:02:46.2]} 7. Bg3 {[%clk 0:02:27.3]} 7... Be7 {[%clk 0:02:46.9]} 8. Qd2
{[%clk 0:02:26.3]} 8... Nge5 {[%clk 0:02:39.3]} 9. O-O-O {[%clk 0:02:24.6]} 9...
Nxf3 {[%clk 0:02:35.9]} 10. gxf3 {[%clk 0:02:24.3]} 10... Be6 {[%clk 0:02:36.8]}
11. f4 {[%clk 0:02:18]} 11... Bg4 {[%clk 0:02:36.4]} 12. Be2 {[%clk 0:02:04.1]}
12... Bxe2 {[%clk 0:02:35.3]} 13. Qxe2 {[%clk 0:02:02]} 13... Qd7 {[%clk
0:02:36.2]} 14. Nd5 {[%clk 0:01:56.8]} 14... O-O-O {[%clk 0:02:35]} 15. h4
{[%clk 0:01:52.7]} 15... Rhe8 {[%clk 0:02:30.5]} 16. f5 {[%clk 0:01:45.4]} 16...
Bf8 {[%clk 0:02:15.5]} 17. Qf2 {[%clk 0:01:38.2]} 17... Ne5 {[%clk 0:02:11.4]}
18. Qxa7 {[%clk 0:01:35.3]} 18... Qb5 {[%clk 0:02:07.1]} 19. a3 {[%clk
0:01:03.4]} 19... Nc6 {[%clk 0:02:02.7]} 20. Qf2 {[%clk 0:00:59.5]} 20... Qc5
{[%clk 0:01:50.3]} 21. Qxc5 {[%clk 0:00:56.1]} 21... dxc5 {[%clk 0:01:50.1]} 22.
Nxc7 {[%clk 0:00:53.9]} 22... Rd7 {[%clk 0:01:50.4]} 23. Nd5 {[%clk 0:00:53.5]}
23... Kd8 {[%clk 0:01:39.5]} 24. Nb6 {[%clk 0:00:49]} 24... Rde7 {[%clk
0:01:34.7]} 25. Bd6 {[%clk 0:00:47]} 25... Rd7 {[%clk 0:01:30.9]} 26. Bxf8
{[%clk 0:00:43.9]} 26... Rxf8 {[%clk 0:01:30]} 27. Nxd7 {[%clk 0:00:44.2]} 27...
Kxd7 {[%clk 0:01:30.9]} 28. Rhg1 {[%clk 0:00:43.4]} 28... g6 {[%clk 0:01:29.8]}
29. Rdf1 {[%clk 0:00:42.7]} 29... Ke7 {[%clk 0:01:21.4]} 30. h5 {[%clk
0:00:38.3]} 30... Ne5 {[%clk 0:01:18.1]} 31. fxg6 {[%clk 0:00:37.1]} 31... hxg6
{[%clk 0:01:17.1]} 32. hxg6 {[%clk 0:00:36.6]} 32... Nxg6 {[%clk 0:01:18]} 33.
Rxg6 {[%clk 0:00:23.1]} 33... fxg6 {[%clk 0:01:16.8]} 34. Rxf8 {[%clk 0:00:24]}
34... Kxf8 {[%clk 0:01:17.5]} 35. Kd2 {[%clk 0:00:24.1]} 35... b5 {[%clk
0:01:15.1]} 36. b3 {[%clk 0:00:20.6]} 36... Ke7 {[%clk 0:01:16]} 37. a4 {[%clk
0:00:21]} 37... bxa4 {[%clk 0:01:14.6]} 38. bxa4 {[%clk 0:00:21.9]} 38... Kd6
{[%clk 0:01:15.3]} 39. a5 {[%clk 0:00:21.2]} 39... Kc6 {[%clk 0:01:15.5]} 40. e5
{[%clk 0:00:21.7]} 40... Kc7 {[%clk 0:01:14.6]} 41. a6 {[%clk 0:00:20.2]} 41...
g5 {[%clk 0:01:06.7]} 42. e6 {[%clk 0:00:20.4]} 42... Kc8 {[%clk 0:00:57.2]} 43.
a7 {[%clk 0:00:20.6]} 43... Kb7 {[%clk 0:00:56.5]} 44. e7 {[%clk 0:00:20.1]}
44... Kxa7 {[%clk 0:00:57.4]} 45. e8=Q {[%clk 0:00:20.3]} 45... Kb6 {[%clk
0:00:57.7]} 46. Qg6+ {[%clk 0:00:21.2]} 46... Kb5 {[%clk 0:00:57.2]} 47. Qxg5
{[%clk 0:00:22.1]} 47... Kb4 {[%clk 0:00:57.1]} 1-0

[Event "*** Titled Tuesday Blitz"]
[Site "Chess.com"]
[Date "2020.04.14"]
[Round "1"]
[White "JoachimMouhamad"]
[Black "RiskyDecision"]
[Result "0-1"]
[WhiteElo "2247"]
[BlackElo "2607"]
[TimeControl "180+1"]
[EndTime "10:06:39 PDT"]
[Termination "RiskyDecision won by resignation"]

1. e4 {[%clk 0:02:48.2]} 1... e6 {[%clk 0:02:59.1]} 2. d4 {[%clk 0:02:38.6]}
2... d5 {[%clk 0:02:58.9]} 3. Nc3 {[%clk 0:02:31.1]} 3... Nf6 {[%clk 0:02:58.2]}
4. e5 {[%clk 0:02:28.5]} 4... Nfd7 {[%clk 0:02:57.5]} 5. f4 {[%clk 0:02:27.2]}
5... c5 {[%clk 0:02:57.9]} 6. Nf3 {[%clk 0:02:26.5]} 6... Be7 {[%clk 0:02:56]}
7. Be3 {[%clk 0:02:15.7]} 7... b6 {[%clk 0:02:55.9]} 8. Qd2 {[%clk 0:01:25.2]}
8... Nc6 {[%clk 0:02:55.6]} 9. O-O-O {[%clk 0:01:14.6]} 9... c4 {[%clk
0:02:55.1]} 10. f5 {[%clk 0:01:10]} 10... b5 {[%clk 0:02:50.1]} 11. Nxb5 {[%clk
0:00:49.2]} 11... Rb8 {[%clk 0:02:38.4]} 12. Nd6+ {[%clk 0:00:42]} 12... Bxd6
{[%clk 0:02:38.6]} 13. exd6 {[%clk 0:00:42.9]} 13... Nf6 {[%clk 0:02:25.9]} 14.
c3 {[%clk 0:00:21.1]} 14... Ne4 {[%clk 0:02:09.1]} 15. Qc2 {[%clk 0:00:20.8]}
15... exf5 {[%clk 0:02:09.3]} 16. Ne5 {[%clk 0:00:19.1]} 16... Qxd6 {[%clk
0:01:35]} 17. Bf4 {[%clk 0:00:15.3]} 17... Rb6 {[%clk 0:01:17.9]} 18. Qa4 {[%clk
0:00:12.9]} 18... O-O {[%clk 0:01:10.2]} 19. g3 {[%clk 0:00:10.3]} 19... Nxe5
{[%clk 0:00:58.2]} 20. Bxe5 {[%clk 0:00:08.4]} 20... Qe6 {[%clk 0:00:49.6]} 21.
Re1 {[%clk 0:00:05]} 21... Bd7 {[%clk 0:00:45.5]} 22. Qc2 {[%clk 0:00:03.1]}
22... Ra6 {[%clk 0:00:38.6]} 23. a3 {[%clk 0:00:03.2]} 23... Ba4 {[%clk
0:00:37.4]} 24. Bg2 {[%clk 0:00:03.1]} 24... Bxc2 {[%clk 0:00:37]} 25. Kxc2
{[%clk 0:00:02.9]} 25... Rb6 {[%clk 0:00:34]} 0-1

[Event "*** Titled Tuesday Blitz"]
[Site "Chess.com"]
[Date "2020.04.14"]
[Round "1"]
[White "atbenina64"]
[Black "cukin84"]
[Result "1/2-1/2"]
[WhiteElo "2529"]
[BlackElo "2107"]
[TimeControl "180+1"]
[EndTime "10:06:39 PDT"]
[Termination "Game drawn by agreement"]

1. d4 {[%clk 0:02:58.9]} 1... f5 {[%clk 0:02:59.2]} 2. Nc3 {[%clk 0:02:54.2]}
2... Nf6 {[%clk 0:02:58.3]} 3. Bg5 {[%clk 0:02:52.8]} 3... g6 {[%clk 0:02:57.7]}
4. Nf3 {[%clk 0:02:49.1]} 4... Bg7 {[%clk 0:02:57]} 5. Bxf6 {[%clk 0:02:49.2]}
5... Bxf6 {[%clk 0:02:56.2]} 6. e4 {[%clk 0:02:49.3]} 6... fxe4 {[%clk
0:02:55.9]} 7. Nxe4 {[%clk 0:02:50.2]} 7... Bg7 {[%clk 0:02:55]} 8. Bd3 {[%clk
0:02:49.9]} 8... O-O {[%clk 0:02:54.5]} 9. c3 {[%clk 0:02:49]} 9... d5 {[%clk
0:02:49.9]} 10. Neg5 {[%clk 0:02:47.2]} 10... Nc6 {[%clk 0:02:48.7]} 11. Qe2
{[%clk 0:02:39.2]} 11... e5 {[%clk 0:02:46.1]} 12. dxe5 {[%clk 0:02:32.4]} 12...
Nxe5 {[%clk 0:02:44.9]} 13. Nxe5 {[%clk 0:02:27.2]} 13... Bxe5 {[%clk
0:02:40.9]} 14. Nf3 {[%clk 0:02:02.1]} 14... Bg4 {[%clk 0:02:39.2]} 15. O-O-O
{[%clk 0:01:59]} 15... Bxf3 {[%clk 0:02:30.1]} 16. gxf3 {[%clk 0:01:58.4]} 16...
Bf4+ {[%clk 0:02:26.4]} 17. Kb1 {[%clk 0:01:57.4]} 17... c6 {[%clk 0:02:26.3]}
18. h4 {[%clk 0:01:53]} 18... Qe8 {[%clk 0:02:17]} 19. Qf1 {[%clk 0:01:49.1]}
19... Qf7 {[%clk 0:02:15.5]} 20. h5 {[%clk 0:01:48.1]} 20... g5 {[%clk
0:02:14.9]} 21. h6 {[%clk 0:01:48.2]} 21... Rae8 {[%clk 0:02:13.1]} 22. Qh3
{[%clk 0:01:46.6]} 22... b5 {[%clk 0:02:04.1]} 23. Rhe1 {[%clk 0:01:30.2]} 23...
a5 {[%clk 0:02:00.3]} 24. Rxe8 {[%clk 0:01:16.3]} 24... Rxe8 {[%clk 0:01:59.1]}
25. Qf1 {[%clk 0:01:11.1]} 25... b4 {[%clk 0:01:58.1]} 26. Re1 {[%clk 0:01:11]}
26... bxc3 {[%clk 0:01:53]} 27. Rxe8+ {[%clk 0:01:04]} 27... Qxe8 {[%clk
0:01:52.4]} 28. bxc3 {[%clk 0:01:04.9]} 28... c5 {[%clk 0:01:50.6]} 29. Bb5
{[%clk 0:00:54.5]} 29... Qe5 {[%clk 0:01:44.3]} 30. c4 {[%clk 0:00:45.6]} 30...
Qc3 {[%clk 0:01:37.7]} 31. cxd5 {[%clk 0:00:41.1]} 31... Be5 {[%clk 0:01:33.1]}
32. Qe2 {[%clk 0:00:34.7]} 32... Qa1+ {[%clk 0:01:30.7]} 33. Kc2 {[%clk
0:00:34.7]} 33... Qxa2+ {[%clk 0:01:30.7]} 34. Kd3 {[%clk 0:00:32.2]} 34... Qb3+
{[%clk 0:01:27.8]} 35. Ke4 {[%clk 0:00:31.8]} 35... Bf6 {[%clk 0:01:15.4]} 36.
d6 {[%clk 0:00:31.4]} 36... Qe6+ {[%clk 0:01:04.6]} 37. Kd3 {[%clk 0:00:31.6]}
37... Qxe2+ {[%clk 0:01:01.9]} 38. Kxe2 {[%clk 0:00:32.5]} 38... Bd8 {[%clk
0:00:59.7]} 39. Bc4+ {[%clk 0:00:30]} 39... Kf8 {[%clk 0:00:59.6]} 40. Bd3
{[%clk 0:00:30]} 40... Ke8 {[%clk 0:00:59.2]} 41. Bxh7 {[%clk 0:00:30.1]} 41...
Kd7 {[%clk 0:00:58.5]} 42. Kd3 {[%clk 0:00:27.3]} 42... Kxd6 {[%clk 0:00:58.2]}
43. Kc4 {[%clk 0:00:28.2]} 43... Bf6 {[%clk 0:00:57.9]} 44. Be4 {[%clk 0:00:28]}
44... Bh8 {[%clk 0:00:53.3]} 1/2-1/2

[Event "*** Titled Tuesday Blitz"]
[Site "Chess.com"]
[Date "2020.04.14"]
[Round "1"]
[White "lestri"]
[Black "Gandrade2"]
[Result "1-0"]
[WhiteElo "2524"]
[BlackElo "2002"]
[TimeControl "180+1"]
[EndTime "10:06:39 PDT"]
[Termination "lestri won on time"]

1. c4 {[%clk 0:03:00.1]} 1... e6 {[%clk 0:02:58]} 2. Nf3 {[%clk 0:02:58.6]} 2...
d5 {[%clk 0:02:58.4]} 3. e3 {[%clk 0:02:58.2]} 3... Nf6 {[%clk 0:02:58.8]} 4. b3
{[%clk 0:02:57.4]} 4... Be7 {[%clk 0:02:58.7]} 5. Bb2 {[%clk 0:02:57]} 5... O-O
{[%clk 0:02:59]} 6. Nc3 {[%clk 0:02:57.4]} 6... c5 {[%clk 0:02:51.9]} 7. cxd5
{[%clk 0:02:56.1]} 7... exd5 {[%clk 0:02:51.8]} 8. d4 {[%clk 0:02:55.7]} 8...
Nc6 {[%clk 0:02:49.4]} 9. Be2 {[%clk 0:02:55]} 9... Re8 {[%clk 0:02:44.1]} 10.
O-O {[%clk 0:02:54]} 10... a6 {[%clk 0:02:41.5]} 11. Rc1 {[%clk 0:02:53.4]}
11... Be6 {[%clk 0:02:28]} 12. dxc5 {[%clk 0:02:50.7]} 12... Bxc5 {[%clk
0:02:27.1]} 13. Na4 {[%clk 0:02:51.2]} 13... Ba7 {[%clk 0:02:27.1]} 14. Nc5
{[%clk 0:02:50.8]} 14... Bc8 {[%clk 0:02:13.1]} 15. Bxf6 {[%clk 0:02:33.7]}
15... Qxf6 {[%clk 0:02:10.4]} 16. Qxd5 {[%clk 0:02:32.9]} 16... Rb8 {[%clk
0:01:20.8]} 17. a3 {[%clk 0:02:17.3]} 17... Ne5 {[%clk 0:00:57.8]} 18. b4 {[%clk
0:02:08.7]} 18... Bg4 {[%clk 0:00:44.1]} 19. Ne4 {[%clk 0:01:44.5]} 19... Qf5
{[%clk 0:00:33]} 20. Nd6 {[%clk 0:01:43.4]} 20... Nxf3+ {[%clk 0:00:32.7]} 21.
Bxf3 {[%clk 0:01:42.8]} 21... Qxd5 {[%clk 0:00:27.2]} 22. Bxd5 {[%clk
0:01:42.9]} 22... Re7 {[%clk 0:00:21]} 23. h3 {[%clk 0:01:38]} 23... Bh5 {[%clk
0:00:13.5]} 24. Rc8+ {[%clk 0:01:36]} 24... Rxc8 {[%clk 0:00:13]} 25. Nxc8
{[%clk 0:01:36.4]} 25... Rd7 {[%clk 0:00:11.8]} 26. Bb3 {[%clk 0:01:03.5]} 26...
Bb8 {[%clk 0:00:11.3]} 27. Rc1 {[%clk 0:01:03]} 27... h6 {[%clk 0:00:10]} 28.
Nb6 {[%clk 0:00:59.6]} 28... Rd6 {[%clk 0:00:07.7]} 29. Nd5 {[%clk 0:00:55.5]}
29... Bg6 {[%clk 0:00:07.1]} 30. Rc8+ {[%clk 0:00:54.4]} 1-0

[Event "*** Titled Tuesday Blitz"]
[Site "Chess.com"]
[Date "2020.04.14"]
[Round "1"]
[White "Rsnr"]
[Black "Chigorinetz"]
[Result "1-0"]
[WhiteElo "2864"]
[BlackElo "2464"]
[TimeControl "180+1"]
[EndTime "10:06:42 PDT"]
[Termination "Rsnr won by checkmate"]

1. d4 {[%clk 0:03:00.9]} 1... d5 {[%clk 0:02:53]} 2. c4 {[%clk 0:03:01.5]} 2...
Nc6 {[%clk 0:02:52.2]} 3. cxd5 {[%clk 0:02:58.1]} 3... Qxd5 {[%clk 0:02:50.6]}
4. e3 {[%clk 0:02:58.7]} 4... e5 {[%clk 0:02:50.5]} 5. Nc3 {[%clk 0:02:59.4]}
5... Bb4 {[%clk 0:02:50.5]} 6. a3 {[%clk 0:03:00.2]} 6... Bxc3+ {[%clk
0:02:49.8]} 7. bxc3 {[%clk 0:03:01.1]} 7... Qd6 {[%clk 0:02:49.9]} 8. a4 {[%clk
0:02:58]} 8... Nge7 {[%clk 0:02:46.8]} 9. Nf3 {[%clk 0:02:46.5]} 9... O-O {[%clk
0:02:42.1]} 10. Be2 {[%clk 0:02:42.5]} 10... Qg6 {[%clk 0:02:34.4]} 11. O-O
{[%clk 0:02:32]} 11... Rd8 {[%clk 0:02:32.6]} 12. Ba3 {[%clk 0:02:28.9]} 12...
Nd5 {[%clk 0:02:29.9]} 13. Rc1 {[%clk 0:02:11.6]} 13... Bh3 {[%clk 0:02:27]} 14.
Ne1 {[%clk 0:02:11.3]} 14... Nf6 {[%clk 0:02:06.9]} 15. f4 {[%clk 0:02:04.1]}
15... exd4 {[%clk 0:02:03.5]} 16. cxd4 {[%clk 0:01:56.8]} 16... Bf5 {[%clk
0:01:49.2]} 17. Nf3 {[%clk 0:01:49.2]} 17... Be4 {[%clk 0:01:48]} 18. Ng5 {[%clk
0:01:41.8]} 18... Bd5 {[%clk 0:01:24.9]} 19. Bd3 {[%clk 0:01:39.3]} 19... Ne4
{[%clk 0:01:24.1]} 20. Qc2 {[%clk 0:01:32.7]} 20... Re8 {[%clk 0:01:18]} 21. h4
{[%clk 0:01:07.7]} 21... Qf5 {[%clk 0:01:02]} 22. Qb1 {[%clk 0:00:54.2]} 22...
Rab8 {[%clk 0:00:59.9]} 23. Rc5 {[%clk 0:00:52.5]} 23... h6 {[%clk 0:00:35.2]}
24. Nxe4 {[%clk 0:00:40.6]} 24... Rxe4 {[%clk 0:00:30.5]} 25. Rxd5 {[%clk
0:00:40.8]} 25... Qxd5 {[%clk 0:00:29.2]} 26. Bxe4 {[%clk 0:00:41.5]} 26... Qc4
{[%clk 0:00:29.1]} 27. Rc1 {[%clk 0:00:41.1]} 27... Qxa4 {[%clk 0:00:27.1]} 28.
Qb2 {[%clk 0:00:36.5]} 28... Nd8 {[%clk 0:00:22.9]} 29. Rxc7 {[%clk 0:00:34]}
29... b5 {[%clk 0:00:22.1]} 30. Bc2 {[%clk 0:00:29.3]} 30... Qa5 {[%clk
0:00:20.5]} 31. Qb4 {[%clk 0:00:25.2]} 31... Qb6 {[%clk 0:00:19.2]} 32. Qf8#
{[%clk 0:00:25]} 1-0